bitfinex/quotes_SOLUSD_20250811
["timestamp","ask_amount","ask_price","bid_price","bid_amount"]
[1754941416666,37.65807099,177.38,177.35,0.72]
[1754941417060,37.65807099,177.38,177.34,40.64]
[1754941417266,37.65807099,177.38,177.36,0.72]
[1754941417492,11.6578515,177.39,177.36,0.72]
[1754941418281,11.6578515,177.39,177.36,90.62]
[1754941418686,5.63739875,177.39,177.36,90.62]
[1754941418890,11.6578515,177.39,177.36,90.62]
[1754941419467,6.02045275,177.38,177.36,89.9]
[1754941419779,6.02045275,177.38,177.37,40.54]
[1754941419985,6.02045275,177.38,177.36,90.62]
[1754941420886,6.02045275,177.38,177.36,131.14]
[1754941421075,11.6578515,177.39,177.36,131.14]
[1754941422377,6.02045275,177.38,177.36,131.14]
[1754941422969,11.65812707,177.38,177.36,131.14]
[1754941423186,6.02045275,177.37,177.36,131.14]
[1754941423395,6.02045275,177.37,177.36,40.52]
[1754941424570,5.63767432,177.38,177.36,40.52]
[1754941424876,32.02045275,177.38,177.37,0.72]
[1754941425194,32.02045275,177.38,177.36,40.52]
[1754941425369,26.0,177.37,177.36,40.52]
[1754941425974,26.0,177.37,177.36,41.24]
[1754941427069,37.65809914,177.38,177.36,41.24]
[1754941427393,37.65809914,177.38,177.37,0.66]
[1754941428371,37.65809914,177.38,177.36,40.52]
[1754941428698,37.65809914,177.38,177.36,41.18]
[1754941429190,6.02045275,177.37,177.36,40.52]
[1754941429704,6.02045275,177.37,177.35,40.44]
[1754941429904,6.02045275,177.36,177.35,40.44]
[1754941430080,6.02045275,177.36,177.33,89.9]
[1754941430284,6.02045275,177.35,177.34,40.44]
[1754941430480,6.02045275,177.36,177.34,41.1]
[1754941430678,11.65870263,177.36,177.35,0.66]
[1754941431076,11.65870263,177.36,177.34,40.44]
[1754941431276,11.65870263,177.36,177.34,41.1]
[1754941431675,6.02045275,177.35,177.31,0.66]
[1754941431992,6.02045275,177.34,177.32,40.42]
[1754941432394,6.02045275,177.34,177.32,41.08]
[1754941432604,20.41387459,177.36,177.32,41.08]
[1754941432901,11.65914502,177.35,177.33,0.66]
[1754941433203,11.65914502,177.35,177.32,40.42]
[1754941433204,5.63869227,177.35,177.34,0.66]
[1754941433979,6.13869227,177.35,177.34,0.66]
[1754941434188,0.5,177.35,177.34,0.66]
[1754941436604,0.5,177.35,177.32,40.48]
[1754941436605,6.1385678,177.35,177.32,40.48]
[1754941436901,6.1385678,177.35,177.33,0.66]
[1754941438606,0.5,177.35,177.34,0.66]
[1754941438995,6.1385678,177.35,177.32,131.04]
[1754941439202,6.1385678,177.35,177.33,0.66]
[1754941439819,0.5,177.35,177.33,0.66]
[1754941440116,0.5,177.35,177.32,130.38]
[1754941440290,0.5,177.35,177.34,0.66]
[1754941440686,6.1385678,177.35,177.32,40.48]
[1754941440995,0.5,177.35,177.33,0.66]
[1754941441497,0.5,177.35,177.34,0.66]
[1754941442007,6.13861958,177.35,177.34,0.66]
[1754941442209,0.5,177.35,177.34,0.66]
[1754941449101,0.5,177.35,177.32,40.48]
[1754941449297,0.5,177.35,177.34,0.66]
[1754941449801,0.5,177.35,177.34,6.68045275]
[1754941449995,26.0,177.37,177.34,6.68045275]
[1754941450216,26.0,177.37,177.35,40.96]
[1754941451208,26.0,177.37,177.32,95.98045275]
[1754941451209,6.70045275,177.36,177.32,95.98045275]
[1754941451404,6.02045275,177.37,177.33,40.96]
[1754941451708,32.02045275,177.38,177.34,0.66]
[1754941451917,38.33814651,177.38,177.34,0.66]
[1754941452302,6.02045275,177.37,177.34,0.66]
[1754941452819,6.02045275,177.36,177.35,40.28]
[1754941453027,6.70045275,177.36,177.35,40.28]
[1754941453225,6.70045275,177.36,177.32,90.62]
[1754941453226,6.70045275,177.36,177.32,89.96]
[1754941453426,6.3185678,177.35,177.33,40.3]
[1754941453631,0.68,177.34,177.33,40.3]
[1754941453925,5.6385678,177.35,177.33,40.3]
[1754941454108,6.3185678,177.35,177.33,40.3]
[1754941454508,6.02045275,177.34,177.33,40.3]
[1754941455124,11.6593385,177.34,177.33,40.3]
[1754941455798,12.1593385,177.34,177.33,40.3]
[1754941456331,6.81888575,177.34,177.32,40.32]
[1754941456529,0.68,177.33,177.32,40.32]
[1754941456729,6.13888575,177.34,177.32,40.32]
[1754941457029,12.1593385,177.34,177.32,40.98]
[1754941457331,0.5,177.34,177.32,40.98]
[1754941457507,6.52045275,177.34,177.32,40.98]
[1754941457707,0.5,177.34,177.32,40.98]
[1754941457910,12.1593385,177.34,177.33,0.69]
[1754941458111,12.1593385,177.34,177.32,40.32]
[1754941458332,6.52045275,177.34,177.32,40.32]
[1754941458507,0.5,177.34,177.33,0.69]
[1754941460112,0.5,177.34,177.32,130.22]
[1754941460617,0.5,177.34,177.32,130.91]
[1754941461834,0.5,177.34,177.32,130.22]
[1754941462013,0.5,177.34,177.33,0.69]
[1754941462515,0.5,177.34,177.32,130.22]
[1754941462715,12.15941798,177.34,177.32,130.22]
[1754941462922,12.86941798,177.34,177.32,130.22]
[1754941463315,6.02045275,177.33,177.32,130.22]
[1754941463717,11.65965649,177.33,177.32,130.22]
[1754941463910,11.65965649,177.33,177.32,89.96]
[1754941464118,12.36965649,177.33,177.32,130.2]
[1754941464416,11.65965649,177.33,177.32,130.89]
[1754941464616,5.63920374,177.33,177.32,130.89]
[1754941464814,12.1593679,177.34,177.32,130.89]
[1754941465330,12.1593679,177.34,177.32,130.2]
[1754941465331,6.13888575,177.34,177.32,130.2]
[1754941465531,12.1593385,177.34,177.32,130.2]
[1754941465742,12.1593385,177.34,177.33,0.69]
[1754941466112,0.5,177.34,177.33,6.71045275]
[1754941466314,0.5,177.34,177.33,0.69]
[1754941466713,0.5,177.34,177.33,90.59]
[1754941467213,0.5,177.34,177.33,89.9]
[1754941467513,6.52045275,177.34,177.33,130.4]
[1754941468044,0.5,177.34,177.33,130.4]
[1754941468226,0.5,177.34,177.33,131.09]
[1754941468422,6.13888575,177.34,177.33,130.4]
[1754941468626,6.84888575,177.34,177.33,40.5]
[1754941468933,0.5,177.34,177.33,41.19]
[1754941469241,0.5,177.34,177.33,47.21045275]
[1754941470119,0.5,177.34,177.33,137.11045275]
[1754941471438,0.5,177.34,177.33,131.09]
[1754941471818,0.5,177.34,177.33,131.21]
[1754941472231,0.5,177.34,177.33,130.52]
[1754941472625,0.5,177.34,177.33,131.21]
[1754941473620,0.5,177.34,177.33,137.23045275]
[1754941474244,0.5,177.34,177.33,96.61045275]
[1754941474448,0.5,177.34,177.33,137.23045275]
[1754941475850,26.0,177.37,177.33,137.23045275]
[1754941476150,26.0,177.37,177.36,6.02045275]
[1754941476443,26.0,177.37,177.36,46.62045275]
[1754941476648,26.0,177.37,177.36,40.6]
[1754941477323,26.0,177.37,177.36,46.62045275]
[1754941477545,26.5,177.37,177.36,46.62045275]
[1754941477839,0.5,177.37,177.36,46.62045275]
[1754941478351,0.5,177.37,177.36,47.31045275]
[1754941479143,0.5,177.37,177.36,41.29]
[1754941479663,0.5,177.37,177.36,40.6]
[1754941480355,0.5,177.37,177.36,41.29]
[1754941480545,0.5,177.37,177.36,47.31045275]
[1754941481157,0.5,177.37,177.36,0.69]
[1754941481360,0.5,177.37,177.36,40.56]
[1754941482347,0.5,177.37,177.34,0.69]
[1754941482547,0.5,177.37,177.35,40.56]
[1754941482548,6.1379926,177.37,177.35,40.56]
[1754941482835,0.5,177.37,177.35,40.56]
[1754941483040,0.5,177.37,177.36,0.69]
[1754941484446,0.5,177.37,177.36,96.61045275]
[1754941484961,0.5,177.37,177.36,6.71045275]
[1754941486364,0.5,177.37,177.36,0.69]
[1754941487453,0.5,177.37,177.36,6.71045275]
[1754941489255,0.5,177.37,177.36,96.61045275]
[1754941489770,0.5,177.37,177.36,90.59]
[1754941490071,0.5,177.37,177.36,131.09]
[1754941490276,0.5,177.37,177.36,137.11045275]
[1754941490779,0.5,177.37,177.36,136.42045275]
[1754941492378,0.5,177.37,177.36,67.9249182]
[1754941492562,0.03,177.44,177.43,6.02045275]
[1754941492884,0.03,177.44,177.43,47.16045275]
[1754941493090,0.03,177.44,177.43,62.26666832]
[1754941493245,0.03,177.48,177.45,21.12666832]
[1754941493449,0.03,177.48,177.45,61.62666832]
[1754941493673,0.03,177.48,177.45,62.28666832]
[1754941494274,0.03,177.48,177.45,47.18045275]
[1754941495274,0.03,177.48,177.45,62.28666832]
[1754941495667,0.03,177.48,177.45,67.92205857]
[1754941495878,0.03,177.48,177.45,68.48559759]
[1754941496078,0.03,177.48,177.46,15.10621557]
[1754941496378,0.03,177.48,177.47,61.58666832]
[1754941496551,0.03,177.48,177.47,62.24666832]
[1754941497052,0.03,177.48,177.47,67.88142348]
[1754941498060,0.03,177.48,177.47,62.24666832]
[1754941498688,0.03,177.48,177.47,70.13780448]
[1754941499191,0.03,177.48,177.47,58.48259657]
[1754941499367,0.03,177.48,177.47,64.50304932]
[1754941500276,0.03,177.48,177.47,70.70127999]
[1754941500670,0.03,177.48,177.47,70.13780448]
[1754941500868,0.03,177.48,177.47,70.07780448]
[1754941501068,0.03,177.5,177.49,104.97621557]
[1754941501271,0.03,177.5,177.49,145.37621557]
[1754941501482,0.03,177.5,177.49,89.87]
[1754941501702,0.21,177.5,177.49,40.4]
[1754941501867,0.03,177.5,177.49,40.4]
[1754941504188,0.03,177.5,177.49,47.08045275]
[1754941504773,0.03,177.5,177.49,152.05666832]
[1754941505763,0.03,177.5,177.49,157.69078855]
[1754941506170,0.03,177.5,177.49,152.05666832]
[1754941508574,0.03,177.5,177.49,130.27]
[1754941508792,6.76045275,177.5,177.49,89.87]
[1754941509097,6.76045275,177.5,177.49,130.17]
[1754941509773,6.05045275,177.5,177.49,40.3]
[1754941509979,0.03,177.5,177.49,40.3]
[1754941510694,6.05045275,177.5,177.49,40.3]
[1754941511225,0.03,177.5,177.49,40.3]
[1754941511505,0.03,177.5,177.49,52.61457298]
[1754941511677,0.03,177.5,177.49,40.3]
[1754941512569,0.03,177.5,177.49,46.98045275]
[1754941513194,0.03,177.5,177.49,46.32045275]
[1754941513792,0.03,177.5,177.49,40.3]
[1754941514899,0.03,177.5,177.49,40.26]
[1754941515396,32.76045275,177.5,177.39,171.9]
[1754941515600,32.76045275,177.5,177.43,0.66]
[1754941515601,6.02045275,177.48,177.43,0.66]
[1754941515807,6.02045275,177.47,177.44,55.38621557]
[1754941516183,6.02045275,177.47,177.44,56.10621557]
[1754941516402,6.02045275,177.47,177.44,41.0]
[1754941516581,5.63420521,177.49,177.44,41.0]
[1754941516786,6.02045275,177.47,177.44,41.0]
[1754941517003,6.02045275,177.48,177.44,41.0]
[1754941517582,6.02045275,177.48,177.44,40.34]
[1754941517783,6.02045275,177.48,177.45,0.7]
[1754941517994,6.02045275,177.48,177.46,40.26]
[1754941518306,26.03,177.5,177.46,40.26]
[1754941518603,0.03,177.5,177.49,6.02045275]
[1754941518782,0.03,177.5,177.49,136.85045275]
[1754941519180,0.03,177.5,177.49,130.13]
[1754941520003,0.03,177.5,177.49,89.87]
[1754941520004,32.73045275,177.5,177.49,89.87]
[1754941520201,38.36425556,177.5,177.49,89.87]
[1754941520410,32.34380281,177.5,177.49,130.13]
[1754941520794,38.36425556,177.5,177.49,130.13]
[1754941522208,31.66380281,177.5,177.49,130.13]
[1754941522407,37.68425556,177.5,177.49,130.13]
[1754941522588,38.36425556,177.5,177.49,130.13]
[1754941522783,38.36425556,177.5,177.49,89.87]
[1754941523287,31.66380281,177.5,177.49,89.87]
[1754941523684,26.03,177.5,177.49,89.87]
[1754941524609,0.03,177.5,177.49,96.59045275]
[1754941524904,0.03,177.5,177.49,89.87]
[1754941526981,6.05045275,177.5,177.49,89.87]
[1754941527186,32.05045275,177.5,177.49,89.87]
[1754941527808,26.03,177.5,177.49,90.57]
[1754941528195,26.03,177.5,177.49,89.87]
[1754941528696,26.03,177.5,177.49,90.57]
[1754941530194,26.03,177.5,177.49,89.87]
[1754941530195,32.05045275,177.5,177.49,89.87]
[1754941530510,38.36425556,177.5,177.48,130.13]
[1754941530811,6.70045275,177.49,177.48,130.13]
[1754941531013,6.70045275,177.49,177.48,40.26]
[1754941531591,6.02045275,177.49,177.48,40.26]
[1754941531995,6.70045275,177.49,177.48,40.26]
[1754941532213,12.33457298,177.49,177.48,40.26]
[1754941533412,26.03,177.5,177.48,40.26]
[1754941533616,26.0,177.49,177.48,40.96]
[1754941534906,37.684321,177.5,177.48,40.26]
[1754941535315,37.684321,177.5,177.48,40.96]
[1754941535509,32.05045275,177.5,177.48,40.96]
[1754941535716,26.03,177.5,177.49,0.7]
[1754941536112,0.03,177.5,177.49,6.72045275]
[1754941536313,0.03,177.5,177.49,21.82666832]
[1754941537710,0.03,177.5,177.49,15.80621557]
[1754941537921,0.03,177.5,177.49,21.82666832]
[1754941539900,0.03,177.5,177.49,15.80621557]
[1754941540106,0.03,177.5,177.49,21.82666832]
[1754941541231,0.03,177.5,177.49,15.80621557]
[1754941541522,0.03,177.5,177.49,21.82666832]
[1754941542105,0.03,177.5,177.49,62.06666832]
[1754941543127,0.03,177.5,177.49,40.94]
[1754941543334,0.03,177.5,177.49,40.24]
[1754941544612,0.03,177.5,177.49,40.94]
[1754941544931,0.03,177.5,177.49,46.96045275]
[1754941545313,0.03,177.5,177.49,130.81]
[1754941546543,0.03,177.5,177.49,130.77]
[1754941547051,0.03,177.5,177.49,136.79045275]
[1754941547536,0.03,177.5,177.49,151.89666832]
[1754941549043,0.03,177.5,177.49,163.5512413]
[1754941549822,0.03,177.5,177.49,157.53078855]
[1754941550230,0.03,177.5,177.49,145.81621557]
[1754941550432,6.05045275,177.5,177.49,40.14]
[1754941550620,6.71045275,177.5,177.49,40.14]
[1754941550822,12.34425556,177.5,177.49,40.14]
[1754941551036,12.34425556,177.5,177.48,0.06]
[1754941551228,6.68045275,177.49,177.48,0.06]
[1754941551440,0.66,177.49,177.48,40.24]
[1754941551627,6.68045275,177.49,177.48,40.24]
[1754941552614,10.43618613,177.49,177.48,40.24]
[1754941552817,16.07030636,177.49,177.48,40.24]
[1754941553037,16.07030193,177.49,177.48,40.24]
[1754941555941,15.41030193,177.49,177.48,40.24]
[1754941556523,10.2761817,177.49,177.48,40.24]
[1754941556731,15.91030193,177.49,177.48,40.24]
[1754941557447,10.2761817,177.49,177.48,40.24]
[1754941558016,4.25572895,177.49,177.48,40.24]
[1754941558441,10.2761817,177.49,177.48,40.24]
[1754941559662,9.7761817,177.49,177.48,40.24]
[1754941559956,16.07030193,177.49,177.48,40.24]
[1754941560551,16.07030193,177.49,177.48,0.06]
[1754941560948,20.76496312,177.49,177.48,0.06]
[1754941561652,5.63539025,177.45,177.44,0.06]
[1754941561832,15.41157195,177.45,177.44,0.06]
[1754941562035,16.07157195,177.45,177.44,0.06]
[1754941562660,15.41157195,177.45,177.44,0.06]
[1754941562846,3.75572895,177.45,177.44,40.89]
[1754941563033,26.0,177.46,177.44,46.91045275]
[1754941563233,11.684529,177.5,177.45,6.71045275]
[1754941563444,3.75322447,177.49,177.46,0.69]
[1754941563760,3.75322447,177.48,177.46,0.69]
[1754941563941,3.75322447,177.48,177.45,6.02045275]
[1754941564140,3.75322447,177.48,177.47,0.69]
[1754941564339,29.75322447,177.49,177.45,6.71045275]
[1754941564647,3.75322447,177.48,177.46,0.69]
[1754941564851,3.75322447,177.49,177.47,46.87045275]
[1754941565059,3.75322447,177.49,177.48,6.71045275]
[1754941565237,26.03,177.5,177.48,6.71045275]
[1754941565559,26.03,177.5,177.49,6.71045275]
[1754941565949,26.03,177.5,177.49,0.69]
[1754941566152,26.03,177.5,177.47,130.72]
[1754941566352,26.03,177.5,177.48,6.71045275]
[1754941566852,26.03,177.5,177.49,0.69]
[1754941567152,26.03,177.5,177.47,130.03]
[1754941567337,0.03,177.5,177.48,0.69]
[1754941567544,0.03,177.5,177.48,6.71045275]
[1754941567755,0.03,177.5,177.48,0.69]
[1754941569153,6.71045275,177.5,177.48,130.05]
[1754941569364,6.05045275,177.5,177.48,130.05]
[1754941569663,0.03,177.5,177.48,130.05]
[1754941569862,6.05045275,177.5,177.48,130.05]
[1754941570359,0.03,177.5,177.48,130.05]
[1754941570564,0.69,177.5,177.48,40.18]
[1754941570854,6.02045275,177.49,177.48,40.18]
[1754941571064,6.68045275,177.49,177.48,40.18]
[1754941571959,26.0,177.49,177.48,40.87]
[1754941572645,0.03,177.5,177.48,40.87]
[1754941572851,0.03,177.5,177.49,6.71045275]
[1754941573036,0.03,177.5,177.49,0.69]
[1754941573738,0.03,177.5,177.48,40.18]
[1754941575143,0.03,177.5,177.49,40.16]
[1754941575343,6.05045275,177.5,177.49,40.16]
[1754941575544,26.0,177.47,177.44,0.06]
[1754941575740,26.0,177.43,177.42,0.06]
[1754941575935,38.0409055,177.43,177.42,1e-08]
[1754941576176,26.0,177.39,177.34,0.06]
[1754941576378,6.02045275,177.35,177.34,0.06]
[1754941576544,11.65902055,177.35,177.34,0.06]
[1754941576743,38.31902055,177.35,177.34,0.06]
[1754941577544,12.31902055,177.35,177.34,0.06]
[1754941578165,16.02764087,177.35,177.34,0.06]
[1754941578944,56.24764087,177.35,177.34,0.06]
[1754941579252,56.22764087,177.35,177.34,0.06]
[1754941579745,56.22764087,177.35,177.33,0.06]
[1754941579952,10.44907307,177.34,177.33,0.06]
[1754941580449,40.44907307,177.34,177.33,0.06]
[1754941581770,46.08795882,177.34,177.33,0.06]
[1754941582346,16.08795882,177.34,177.33,0.06]
[1754941583162,15.36795882,177.34,177.33,0.06]
[1754941585343,45.36795882,177.34,177.33,0.06]
[1754941586066,15.36795882,177.34,177.33,0.06]
[1754941587454,45.36795882,177.34,177.33,0.06]
[1754941588071,46.08795882,177.34,177.33,0.06]
[1754941589677,45.36795882,177.34,177.33,0.06]
[1754941590672,46.08795882,177.34,177.33,0.06]
[1754941590873,45.36795882,177.34,177.33,0.06]
[1754941593777,85.50795882,177.34,177.33,0.06]
[1754941594081,86.22795882,177.34,177.33,0.06]
[1754941594665,56.22795882,177.34,177.33,0.06]
[1754941595682,58.48765382,177.34,177.33,0.06]
[1754941595891,88.48765382,177.34,177.33,0.06]
[1754941597488,87.76765382,177.34,177.33,0.06]
[1754941597991,85.50795882,177.34,177.33,0.06]
[1754941598284,45.36795882,177.34,177.33,0.06]
[1754941598465,45.36795882,177.34,177.33,0.75]
[1754941598670,45.36795882,177.34,177.33,0.06]
[1754941599083,15.36795882,177.34,177.33,0.06]
[1754941600268,11.71882937,177.34,177.33,0.06]
[1754941600675,51.79882937,177.34,177.33,0.06]
[1754941602075,81.79882937,177.34,177.33,0.06]
[1754941603518,41.71882937,177.34,177.33,0.06]
[1754941603696,41.71882937,177.34,177.33,0.75]
[1754941603878,41.71882937,177.34,177.33,0.06]
[1754941605604,41.71882937,177.34,177.32,0.06]
[1754941605605,82.12882937,177.34,177.32,0.06]
[1754941605910,36.42994362,177.33,177.31,0.06]
[1754941606108,46.13994362,177.32,177.31,0.06]
[1754941606603,30.0,177.33,177.29,0.06]
[1754941606794,26.0,177.31,177.3,0.69]
[1754941606982,56.0,177.31,177.3,0.69]
[1754941607184,26.0,177.31,177.3,0.69]
[1754941607520,0.03,177.38,177.3,6.76994362]
[1754941607693,6.07994362,177.34,177.31,0.66]
[1754941608094,5.63824988,177.36,177.33,6.07994362]
[1754941608313,6.07994362,177.35,177.34,0.66]
[1754941608613,6.75994362,177.35,177.29,0.06]
[1754941608906,6.07994362,177.32,177.29,0.72]
[1754941609113,6.07994362,177.32,177.3,0.66]
[1754941609482,6.07994362,177.32,177.29,0.06]
[1754941609708,32.07994362,177.33,177.31,0.66]
[1754941609909,26.0,177.33,177.31,0.66]
[1754941610213,0.03,177.36,177.29,0.06]
[1754941610398,31.66827013,177.36,177.32,0.66]
[1754941610718,26.0,177.34,177.33,6.73994362]
[1754941611388,26.0,177.33,177.31,6.73994362]
[1754941611589,26.0,177.33,177.31,6.07994362]
[1754941611793,26.0,177.33,177.32,0.66]
[1754941611993,26.0,177.33,177.3,0.72]
[1754941612316,26.0,177.33,177.31,0.66]
[1754941612496,26.0,177.33,177.32,0.66]
[1754941613318,26.0,177.34,177.32,6.73994362]
[1754941613612,26.0,177.34,177.33,0.66]
[1754941613991,0.03,177.36,177.33,0.66]
[1754941613992,26.03,177.36,177.33,6.73994362]
[1754941614216,0.03,177.36,177.34,6.73994362]
[1754941614402,26.0,177.35,177.32,6.07994362]
[1754941614592,26.0,177.35,177.33,6.73994362]
[1754941616630,6.07994362,177.35,177.31,40.06]
[1754941616919,11.74821372,177.36,177.32,6.73994362]
[1754941617417,0.03,177.36,177.33,6.07994362]
[1754941617627,26.0,177.35,177.34,6.07994362]
[1754941617839,26.0,177.35,177.34,6.73994362]
[1754941618012,0.03,177.36,177.34,6.73994362]
[1754941618202,26.03,177.36,177.35,6.73994362]
[1754941619823,26.03,177.36,177.33,6.07994362]
[1754941620026,26.03,177.36,177.34,6.73994362]
[1754941620248,0.03,177.36,177.35,6.73994362]
[1754941620405,0.03,177.36,177.35,21.84615919]
[1754941620717,0.03,177.38,177.35,28.04858377]
[1754941620924,0.03,177.38,177.37,21.18615919]
[1754941621228,0.03,177.4,177.38,15.10621557]
[1754941621403,0.03,177.42,177.39,61.80988882]
[1754941621604,0.03,177.42,177.41,21.18615919]
[1754941622105,0.03,177.42,177.41,15.67621557]
[1754941622305,0.03,177.42,177.41,21.75615919]
[1754941622697,0.03,177.42,177.41,27.39282003]
[1754941623816,0.03,177.42,177.41,21.75615919]
[1754941623998,0.03,177.42,177.41,27.39282003]
[1754941624401,0.03,177.42,177.41,21.75615919]
[1754941625619,0.03,177.42,177.41,61.22615919]
[1754941626012,0.03,177.42,177.41,61.79615919]
[1754941626215,0.03,177.42,177.41,40.04]
[1754941626529,6.78994362,177.42,177.41,40.04]
[1754941627224,26.0,177.4,177.39,40.04]
[1754941627400,32.07994362,177.4,177.39,40.04]
[1754941627606,32.75994362,177.4,177.39,40.04]
[1754941627805,32.07994362,177.4,177.39,40.04]
[1754941628021,0.03,177.42,177.39,46.11994362]
[1754941628416,0.03,177.42,177.39,40.04]
[1754941628620,6.10994362,177.42,177.39,40.04]
[1754941628819,6.78994362,177.42,177.39,40.04]
[1754941629025,6.75994362,177.41,177.39,40.04]
[1754941629223,6.75994362,177.4,177.36,104.97621557]
[1754941629529,26.0,177.4,177.39,40.04]
[1754941629731,26.0,177.4,177.34,15.10621557]
[1754941629732,26.0,177.39,177.34,15.10621557]
[1754941629918,0.68,177.38,177.35,40.04]
[1754941630525,6.75994362,177.37,177.35,40.04]
[1754941631209,6.07994362,177.36,177.34,89.87]
[1754941631419,6.07994362,177.35,177.34,89.87]
[1754941631614,6.07994362,177.35,177.34,40.04]
[1754941632321,9.7222674,177.36,177.34,40.04]
[1754941632834,10.4022674,177.35,177.34,40.04]
[1754941633018,9.7222674,177.35,177.34,40.04]
[1754941633418,26.0,177.35,177.34,40.04]
[1754941633828,9.7222674,177.4,177.34,50.3322674]
[1754941634027,10.4022674,177.41,177.36,9.7222674]
[1754941634243,10.4022674,177.41,177.37,49.7622674]
[1754941634244,26.0,177.4,177.37,49.7622674]
[1754941634409,26.0,177.39,177.38,40.04]
[1754941635319,0.03,177.42,177.38,49.7622674]
[1754941635507,0.71,177.42,177.38,40.04]
[1754941635710,26.0,177.41,177.39,9.7222674]
[1754941635906,26.0,177.4,177.39,9.7222674]
[1754941636204,0.71,177.42,177.39,9.7222674]
[1754941636410,26.03,177.42,177.41,9.7222674]
[1754941636610,26.03,177.42,177.41,49.7622674]
[1754941636808,26.03,177.42,177.41,40.04]
[1754941637030,26.03,177.42,177.41,49.7622674]
[1754941637230,0.03,177.42,177.41,49.7622674]
[1754941637824,0.03,177.42,177.41,40.04]
[1754941638643,10.4722674,177.42,177.36,89.87]
[1754941638806,0.75,177.42,177.37,55.14621557]
[1754941639012,0.75,177.42,177.37,64.86848297]
[1754941639013,0.72,177.41,177.37,64.86848297]
[1754941639241,0.72,177.41,177.37,49.7622674]
[1754941639438,10.4422674,177.41,177.37,40.04]
[1754941639623,10.4422674,177.41,177.37,49.7622674]
[1754941639819,9.7222674,177.41,177.37,50.3422674]
[1754941640141,26.03,177.42,177.37,49.7622674]
[1754941640352,26.03,177.42,177.38,0.58]
[1754941640353,0.03,177.42,177.38,0.58]
[1754941640650,0.03,177.42,177.41,9.7222674]
[1754941640945,0.03,177.42,177.41,49.7622674]
[1754941641440,0.03,177.42,177.41,64.86848297]
[1754941641644,0.03,177.42,177.41,155.31848297]
[1754941642738,0.03,177.42,177.41,160.95514381]
[1754941645225,0.03,177.42,177.41,120.91514381]
[1754941645434,0.03,177.42,177.41,160.93514381]
[1754941648241,0.03,177.42,177.41,177.86277881]
[1754941648935,0.03,177.46,177.45,15.10621557]
[1754941649147,0.03,177.46,177.45,154.68848297]
[1754941649641,0.03,177.46,177.45,160.90387322]
[1754941650159,0.03,177.46,177.45,154.68848297]
[1754941650457,0.03,177.46,177.45,144.96621557]
[1754941650638,0.75,177.46,177.45,144.96621557]
[1754941651155,0.75,177.46,177.45,129.86]
[1754941651537,0.03,177.46,177.45,139.5822674]
[1754941652133,0.03,177.46,177.45,129.86]
[1754941652350,0.75,177.46,177.45,129.86]
[1754941652528,0.03,177.46,177.45,129.86]
[1754941654253,0.03,177.46,177.45,139.5822674]
[1754941655244,0.03,177.46,177.45,154.68848297]
[1754941655757,0.03,177.46,177.45,144.96621557]
[1754941656057,10.4722674,177.46,177.45,129.86]